bitfinex/quotes_ETHUSD_20250731
["timestamp","ask_amount","ask_price","bid_price","bid_amount"]
[1753958075604,0.9455,3864.8,3864.5,14.52596803]
[1753958075807,0.9455,3864.8,3864.5,16.31901849]
[1753958076001,0.7748,3865.2,3864.5,16.31901849]
[1753958076206,0.5214,3864.9,3864.5,16.31901849]
[1753958076681,1e-08,3864.6,3864.5,16.79021849]
[1753958076893,1e-08,3864.6,3864.5,17.34021849]
[1753958077232,1e-08,3864.6,3864.5,12.34301849]
[1753958077398,1e-08,3864.6,3864.5,16.31901849]
[1753958077826,1e-08,3864.6,3864.5,16.79021849]
[1753958083030,0.4814,3865.3,3865.0,2.58732212]
[1753958083197,0.4814,3865.3,3865.0,6.56232212]
[1753958083511,0.4814,3865.1,3865.0,6.69192212]
[1753958083706,0.002,3865.1,3865.0,10.24192212]
[1753958084035,0.002,3865.1,3865.0,12.55836105]
[1753958085298,0.002,3865.1,3865.0,12.08716105]
[1753958086132,0.002,3865.1,3865.0,12.55836105]
[1753958086930,0.002,3865.1,3865.0,12.08716105]
[1753958087112,0.002,3865.1,3865.0,12.55836105]
[1753958091034,0.002,3865.1,3865.0,12.08716105]
[1753958091609,0.9475,3865.1,3865.0,11.53016105]
[1753958096558,0.9475,3865.1,3865.0,11.52716105]
[1753958100167,0.9475,3865.1,3865.0,11.52516105]
[1753958100471,0.9475,3865.1,3865.0,9.67892212]
[1753958100876,0.9475,3865.1,3865.0,6.67892212]
[1753958101779,0.8085,3865.0,3863.9,2.03522552]
[1753958101952,0.8085,3865.0,3864.9,2.58738906]
[1753958102157,1.754,3865.0,3864.9,6.56038906]
[1753958102839,1.754,3865.0,3864.9,2.58738906]
[1753958103173,1.754,3865.0,3864.9,6.55938906]
[1753958103349,0.002,3865.1,3865.0,2.58732212]
[1753958103549,0.002,3865.1,3865.0,7.42003328]
[1753958104056,0.002,3865.1,3865.0,10.42003328]
[1753958105086,0.9354,3865.1,3865.0,10.42003328]
[1753958106147,0.002,3865.1,3865.0,10.42003328]
[1753958106474,0.002,3865.1,3865.0,12.56557816]
[1753958107386,0.002,3865.1,3865.0,13.05617816]
[1753958108384,0.002,3865.5,3865.2,2.58718824]
[1753958108548,0.002,3865.5,3865.4,10.41976553]
[1753958110469,0.002,3865.5,3865.4,10.14976553]
[1753958110676,0.002,3865.5,3865.4,11.86962091]
[1753958111076,0.042,3865.9,3865.8,2.58678669]
[1753958111294,0.042,3865.9,3865.8,9.55678669]
[1753958111846,0.042,3865.9,3865.8,9.68638669]
[1753958113063,0.9754,3865.9,3865.8,9.68638669]
[1753958113267,0.9754,3865.9,3865.8,11.47439853]
[1753958118184,0.9754,3865.9,3865.8,11.47139853]
[1753958118689,0.9754,3865.9,3865.8,16.30410969]
[1753958119260,0.9754,3865.9,3865.8,14.51609785]
[1753958122087,0.042,3865.9,3865.8,14.51609785]
[1753958122894,0.042,3865.9,3865.8,11.51609785]
[1753958123297,0.042,3865.9,3865.8,12.00669785]
[1753958123999,0.042,3865.9,3865.8,11.51609785]
[1753958124166,0.042,3865.9,3865.8,12.97545969]
[1753958126861,0.042,3865.9,3865.8,17.29385969]
[1753958127695,1e-08,3865.9,3865.8,17.29385969]
[1753958130786,0.00200001,3865.9,3865.8,17.29385969]
[1753958133371,1e-08,3866.0,3865.9,5.58671978]
[1753958133571,1e-08,3866.0,3865.9,8.37113978]
[1753958136729,1e-08,3866.0,3865.9,7.87923978]
[1753958138793,0.49420001,3866.0,3865.9,11.83523978]
[1753958138988,0.96390001,3866.0,3865.9,5.58671978]
[1753958139294,0.96390001,3866.0,3865.9,9.54271978]
[1753958139506,0.96390001,3866.0,3865.9,5.58671978]
[1753958139828,0.96390001,3866.0,3865.9,9.54271978]
[1753958140225,1e-08,3866.0,3865.9,9.67231978]
[1753958140429,1e-08,3866.0,3865.9,11.78622978]
[1753958143133,0.4962,3866.4,3866.3,2.58645216]
[1753958143298,0.9659,3866.4,3866.3,6.54345216]
[1753958143504,0.9659,3866.4,3866.3,6.67305216]
[1753958144406,0.9659,3866.4,3866.3,7.07779421]
[1753958144826,0.002,3866.4,3866.3,7.07779421]
[1753958146141,0.4717,3866.4,3866.3,7.07579421]
[1753958146455,0.9659,3866.4,3866.3,7.07579421]
[1753958148020,0.002,3866.4,3866.3,7.07579421]
[1753958148706,0.002,3866.4,3866.3,10.07579421]
[1753958149341,0.9659,3866.4,3866.3,10.07579421]
[1753958151161,0.9659,3866.4,3866.3,6.12079421]
[1753958151457,1.7649,3866.4,3866.3,9.66805216]
[1753958152416,1.7649,3866.4,3866.3,0.1296]
[1753958152618,1.7649,3866.4,3866.3,4.0826]
[1753958153306,1.7649,3866.4,3866.3,3.953]
[1753958153588,1.7649,3866.4,3865.6,0.001]
[1753958153589,1.7649,3866.4,3866.2,2.71611332]
[1753958153789,0.002,3866.4,3866.2,0.1296]
[1753958153955,0.002,3866.4,3866.3,3.952]
[1753958154149,0.7955,3866.4,3866.3,3.952]
[1753958154586,1.7594,3866.4,3866.3,3.952]
[1753958155092,2.00194261,3866.4,3866.3,3.952]
[1753958155570,2.00188048,3866.4,3866.3,3.952]
[1753958159270,1.20838048,3866.4,3866.2,0.1296]
[1753958159567,1.7145,3866.3,3866.2,0.1296]
[1753958159869,1.7145,3866.3,3866.2,4.0786]
[1753958160796,1.7145,3866.3,3866.2,6.66511906]
[1753958161993,1.7145,3866.3,3866.2,4.0786]
[1753958162290,0.9639,3866.3,3866.2,0.1296]
[1753958162456,7.81064845,3866.3,3865.6,0.1306]
[1753958162649,0.1296,3865.7,3865.6,0.001]
[1753958162848,0.9136,3865.7,3865.6,0.001]
[1753958163061,1.8775,3865.7,3865.6,0.001]
[1753958163643,4.4643536,3865.7,3865.6,0.001]
[1753958163855,2.32393536,3865.7,3865.6,0.001]
[1753958164086,1.8775,3865.7,3865.6,0.001]
[1753958164273,4.4643536,3865.7,3865.6,0.001]
[1753958164662,1.8775,3865.7,3865.6,0.001]
[1753958165786,4.4643536,3865.7,3865.6,0.001]
[1753958167380,5.25609378,3865.7,3865.6,0.001]
[1753958167582,8.25609378,3865.7,3865.6,0.001]
[1753958172404,8.25556218,3865.7,3865.6,0.001]
[1753958172910,8.38760788,3865.7,3865.6,0.001]
[1753958176815,8.49128488,3865.7,3865.6,0.001]
[1753958177297,13.32399604,3865.7,3865.6,0.001]
[1753958180196,12.77399604,3865.7,3865.6,0.001]
[1753958182215,13.32399604,3865.7,3865.6,0.001]
[1753958183792,12.77399604,3865.7,3865.6,0.001]
[1753958184539,13.32399604,3865.7,3865.6,0.001]
[1753958187519,13.32424458,3865.7,3865.6,0.001]
[1753958187820,13.32424393,3865.7,3865.6,0.001]
[1753958188119,13.32424405,3865.7,3865.6,0.001]
[1753958188320,8.2500763,3865.7,3865.6,0.001]
[1753958188528,12.1990763,3865.7,3865.6,0.001]
[1753958189679,12.44066786,3865.7,3865.6,0.001]
[1753958193117,12.44089676,3865.7,3865.6,0.001]
[1753958200343,11.47699676,3865.7,3865.6,0.001]
[1753958200742,11.93789676,3865.7,3865.6,0.001]
[1753958200947,8.42069676,3865.7,3865.6,0.001]
[1753958201116,12.36369676,3865.7,3865.6,0.001]
[1753958202068,11.47099676,3865.7,3865.6,0.001]
[1753958202747,12.36369676,3865.7,3865.6,0.001]
[1753958204752,10.91999676,3865.7,3865.6,0.494]
[1753958204913,6.87431976,3865.7,3865.6,0.001]
[1753958205117,10.03131976,3865.7,3865.6,0.494]
[1753958205718,10.03131976,3865.7,3865.6,0.001]
[1753958207891,6.09031976,3865.7,3865.6,0.001]
[1753958208038,10.03031976,3865.7,3865.6,0.494]
[1753958208238,9.89827406,3865.7,3865.6,0.9507]
[1753958208451,9.89827406,3865.7,3865.6,0.494]
[1753958208856,9.89827406,3865.7,3865.6,0.9507]
[1753958208857,0.37142046,3865.7,3865.6,0.9507]
[1753958209279,4.31242046,3865.7,3865.6,0.9507]
[1753958210886,4.31242046,3865.7,3865.6,0.494]
[1753958211042,0.37142046,3865.7,3865.6,0.494]
[1753958213161,0.37142046,3865.7,3865.6,0.9507]
[1753958213455,0.37142046,3865.7,3865.6,0.001]
[1753958213639,0.37142046,3865.7,3865.6,0.9507]
[1753958214958,0.24182046,3865.7,3865.6,0.9507]
[1753958216276,0.24182046,3865.7,3865.6,0.494]
[1753958217473,0.24182046,3865.7,3865.6,0.001]
[1753958217677,0.37142046,3865.7,3865.6,0.001]
[1753958218047,0.37142046,3865.7,3865.6,0.494]
[1753958219583,0.1296,3865.7,3865.6,0.494]
[1753958219781,0.37142046,3865.7,3865.6,0.494]
[1753958219978,0.1296,3865.7,3865.6,0.494]
[1753958220181,0.37142046,3865.7,3865.6,0.494]
[1753958220475,0.1296,3865.7,3865.6,0.494]
[1753958220679,0.37142046,3865.7,3865.6,0.494]
[1753958221081,0.1296,3865.7,3865.6,0.494]
[1753958221280,0.37142046,3865.7,3865.6,0.494]
[1753958221779,0.24182046,3865.7,3865.6,0.494]
[1753958222982,0.24182046,3865.8,3865.6,0.494]
[1753958224187,0.2417776,3865.7,3865.6,0.494]
[1753958225054,0.2417776,3865.8,3865.6,0.494]
[1753958225253,0.2417776,3865.7,3865.6,0.494]
[1753958225454,0.2417776,3865.8,3865.6,0.001]
[1753958225656,0.2417776,3865.7,3865.6,0.4976]
[1753958226408,0.2417776,3865.8,3865.6,0.4976]
[1753958226578,0.2417776,3865.7,3865.6,0.4976]
[1753958228589,0.2417776,3865.8,3865.6,0.4976]
[1753958229294,0.2417776,3865.7,3865.6,0.4976]
[1753958229495,0.2417776,3865.7,3865.6,0.001]
[1753958229667,0.2417776,3865.8,3865.6,0.4976]
[1753958229855,0.2417776,3865.7,3865.6,0.001]
[1753958230060,0.2417776,3865.8,3865.6,0.001]
[1753958230254,0.2417776,3865.7,3865.6,0.001]
[1753958230458,0.2417776,3865.7,3865.6,0.4976]
[1753958230660,6.475,3865.9,3865.6,2.10482437]
[1753958230890,6.475,3865.9,3865.7,2.58680154]
[1753958231063,6.475,3865.9,3865.7,3.15630154]
[1753958231257,6.475,3865.9,3865.8,0.4966]
[1753958231458,6.71682986,3865.9,3865.8,0.4966]
[1753958231770,7.17162986,3865.9,3865.6,0.7766]
[1753958231975,1.15422986,3865.8,3865.6,0.001]
[1753958232175,0.2418458,3865.7,3865.6,0.001]
[1753958234971,6.475,3865.9,3865.6,3.08452052]
[1753958235171,0.24191829,3865.8,3865.7,0.4966]
[1753958235904,0.24191829,3865.8,3865.7,3.8393536]
[1753958236303,0.24191829,3865.8,3865.7,4.2792536]
[1753958236504,0.24191829,3865.8,3865.7,9.04764347]
[1753958237182,6.475,3865.9,3865.8,2.58678669]
[1753958237390,6.71705399,3865.9,3865.8,2.58678669]
[1753958237709,6.71705399,3865.9,3865.8,3.08338669]
[1753958238312,0.24205399,3865.9,3865.8,3.65288669]
[1753958238484,0.24205399,3865.9,3865.8,5.29970749]
[1753958239010,0.002,3866.1,3866.0,2.58665287]
[1753958239306,0.24413472,3866.1,3866.0,2.58665287]
[1753958239507,0.24413472,3866.1,3866.0,7.15185287]
[1753958240808,0.24413472,3866.1,3866.0,7.94555287]
[1753958241008,0.002,3866.1,3866.0,10.15661232]
[1753958256035,0.002,3866.1,3866.0,9.71671232]
[1753958256340,0.002,3866.1,3866.0,10.15541232]
[1753958257109,0.002,3866.1,3866.0,14.40541232]
[1753958258706,0.002,3866.1,3866.0,13.96671232]
[1753958258913,0.002,3866.1,3866.0,16.96671232]
[1753958266350,0.002,3866.1,3866.0,16.47011232]
[1753958268049,0.9247,3866.1,3866.0,11.73741232]
[1753958268238,0.9247,3866.1,3866.0,13.90325287]
[1753958268926,0.9247,3866.1,3866.0,9.65325287]
[1753958278989,0.9247,3866.1,3866.0,5.71625287]
[1753958279137,1.7243,3866.1,3866.0,9.65325287]
[1753958280339,1.7243,3866.1,3866.0,6.65325287]
[1753958280538,1.89713,3866.1,3866.0,6.65225287]
[1753958281694,1.89713,3866.1,3866.0,6.52265287]
[1753958282277,1.89713,3866.1,3866.0,6.52365287]
[1753958282473,1.89713,3866.1,3866.0,0.001]
[1753958282697,8.50173,3866.1,3866.0,3.937]
[1753958284762,8.50173,3866.1,3865.7,2.58685084]
[1753958284906,6.58131116,3866.0,3865.6,0.001]
[1753958285083,3.4981536,3865.7,3865.6,0.001]
[1753958285289,9.9741536,3865.7,3865.6,0.001]
[1753958285607,10.9118536,3865.7,3865.6,0.001]
[1753958288006,14.4618536,3865.7,3865.6,0.001]
[1753958290189,18.3988536,3865.7,3865.6,0.001]
[1753958292920,18.64026906,3865.7,3865.6,0.001]
[1753958293788,18.76884159,3865.7,3865.6,0.001]
[1753958295330,23.60155275,3865.7,3865.6,0.001]
[1753958295533,23.70523775,3865.7,3865.6,0.001]
[1753958296636,23.70523775,3865.7,3865.6,1e-08]
[1753958296817,6.95782131,3865.3,3865.2,1e-08]
[1753958297019,22.57703617,3865.3,3865.2,1e-08]
[1753958297217,23.51473617,3865.3,3865.2,1e-08]
[1753958297910,23.61844117,3865.3,3865.2,1e-08]
[1753958303238,3.90928906,3864.9,3864.8,0.001]
[1753958303413,22.39990392,3864.9,3864.8,0.001]
[1753958303612,23.09670022,3864.9,3864.8,0.001]
[1753958303813,23.33689775,3864.9,3864.8,0.001]
[1753958304158,23.44060975,3864.9,3864.8,0.001]
[1753958306926,23.20041222,3864.9,3864.8,0.001]
[1753958307243,23.4405745,3864.9,3864.8,0.001]
[1753958308548,23.57116351,3864.9,3864.8,0.001]
[1753958310627,23.57128458,3864.9,3864.8,0.001]
[1753958313033,23.57141397,3864.9,3864.8,0.001]
[1753958316077,23.57169878,3864.9,3864.8,0.001]
[1753958317686,18.69599878,3864.9,3864.8,0.001]
[1753958317892,22.63499878,3864.9,3864.8,0.001]
[1753958318091,13.86328762,3864.9,3864.8,0.001]
[1753958318388,16.60998762,3864.9,3864.8,0.001]
[1753958318602,16.50627562,3864.9,3864.8,0.4975]
[1753958318979,17.05627562,3864.9,3864.8,0.4975]
[1753958319382,13.11727562,3864.9,3864.8,0.4975]
[1753958319690,17.05627562,3864.9,3864.8,0.9294]
[1753958320277,17.05627562,3864.9,3864.8,0.4975]
[1753958320886,13.11727562,3864.9,3864.8,0.4975]
[1753958321060,17.05527562,3864.9,3864.8,0.9294]
[1753958321789,17.05527562,3864.9,3864.8,0.4975]
[1753958322293,16.50527562,3864.9,3864.8,0.4975]
[1753958322495,16.50527562,3864.9,3864.8,0.9294]
[1753958322696,16.50527562,3864.9,3864.8,0.4975]
[1753958322902,12.43668661,3864.9,3864.8,0.9294]
[1753958323069,16.37468661,3864.9,3864.8,0.9294]
[1753958324291,12.43668661,3864.9,3864.8,0.9294]
[1753958324494,9.84929755,3864.9,3864.8,1.6926]
[1753958324800,13.65878276,3864.9,3864.8,1.6926]
[1753958325897,10.65878276,3864.9,3864.8,1.6926]
[1753958326196,4.17978276,3864.9,3864.8,1.6926]
[1753958326379,0.24178276,3864.9,3864.8,1.6926]
[1753958326568,4.17978276,3864.9,3864.8,1.6926]
[1753958326897,10.65678276,3864.9,3864.8,1.6926]
[1753958328489,6.71878276,3864.9,3864.8,4.70816824]
[1753958328688,3.938,3865.1,3864.9,2.58737054]
[1753958328999,0.24172976,3865.0,3864.9,2.58737054]
[1753958329186,0.24172976,3865.0,3864.8,1.19231223]
[1753958329390,3.938,3865.2,3864.8,1.19231223]
[1753958329593,0.24164329,3865.1,3864.9,0.9284]
[1753958329803,0.24164329,3865.1,3864.8,1.19231223]
[1753958330003,0.24164329,3865.1,3865.0,0.9284]
[1753958330873,0.24157539,3865.1,3865.0,0.9284]
[1753958331298,3.938,3865.2,3865.0,0.9284]
[1753958331493,0.1296,3865.3,3865.1,0.4965]
[1753958331694,0.37111427,3865.3,3865.2,3.41418824]
[1753958331899,3.937,3865.5,3865.2,3.84608824]
[1753958332101,3.937,3865.5,3865.2,3.41418824]
[1753958332270,3.937,3865.5,3865.3,0.9284]
[1753958332613,10.413,3865.6,3865.3,3.5155122]
[1753958332796,10.413,3865.6,3865.3,2.58710862]
[1753958333001,10.413,3865.6,3865.4,0.9284]
[1753958333305,10.413,3865.6,3865.4,0.4319]
[1753958333507,10.413,3865.6,3865.5,0.4965]
[1753958333807,10.65439948,3865.6,3865.5,0.4965]
[1753958334011,10.413,3865.6,3865.5,0.4965]
[1753958334883,6.476,3865.6,3865.5,0.9284]
[1753958335476,6.476,3865.6,3865.5,0.4965]
[1753958335675,3.937,3865.7,3865.6,0.7803]
[1753958335876,0.1296,3865.8,3865.6,1.7087]
[1753958336084,4.0666,3865.8,3865.7,0.9284]
[1753958337089,4.0666,3865.8,3865.7,0.4965]
[1753958338131,0.1296,3865.8,3865.7,0.4965]
[1753958343034,6.475,3866.0,3865.7,0.4965]
[1753958343218,10.5406,3866.0,3865.7,0.4965]
[1753958343418,10.5406,3866.0,3865.6,3.36718225]
[1753958343620,10.5406,3866.0,3865.8,0.4604]
[1753958344428,10.5406,3866.0,3865.6,1.2407]
[1753958344628,10.5406,3866.0,3865.7,0.4604]
[1753958345349,14.04206558,3866.0,3865.6,0.7803]
[1753958345728,11.4554,3866.0,3865.6,1.2407]
[1753958347521,10.9836,3866.0,3865.6,1.2407]
[1753958347720,0.9148,3865.9,3865.6,0.7803]
[1753958348226,0.4718,3865.8,3865.6,0.7803]
[1753958349428,0.9148,3865.8,3865.5,0.1296]
[1753958349833,3.936,3865.9,3865.5,3.17697405]
[1753958350317,4.4078,3865.9,3865.5,0.59]
[1753958350531,4.8508,3865.9,3865.5,0.59]
[1753958352655,4.8508,3865.9,3865.5,3.17698298]
[1753958353562,4.8508,3865.9,3865.5,0.59]
[1753958355365,4.8508,3865.9,3865.5,3.17696879]
[1753958356422,4.8508,3865.9,3865.5,0.59]
[1753958356859,0.2418882,3865.8,3865.5,0.59]
[1753958357063,1.1566882,3865.8,3865.5,0.1296]
[1753958357360,0.9148,3865.8,3865.5,0.1296]
[1753958358060,0.9148,3865.8,3865.5,0.59]
[1753958358266,3.936,3865.9,3865.5,0.59]
[1753958358467,0.24202343,3865.8,3865.5,0.59]
[1753958359572,0.24202343,3865.8,3865.5,3.17698162]
[1753958359780,0.24202343,3865.8,3865.5,0.59]
[1753958360312,0.24202343,3865.7,3865.5,0.59]
[1753958360498,0.9148,3865.9,3865.5,0.59]
[1753958360698,0.24212413,3865.8,3865.5,3.17698028]
[1753958360873,0.24212413,3865.7,3865.5,3.17698028]
[1753958361073,4.8498,3865.9,3865.5,3.17698028]
[1753958361310,0.24212419,3865.8,3865.5,3.17698028]
[1753958361476,0.24212419,3865.7,3865.5,3.17698028]
[1753958361673,4.8498,3865.9,3865.5,3.17698028]
[1753958361866,0.24220697,3865.8,3865.5,3.17698028]
[1753958362087,0.24220697,3865.7,3865.5,3.17698028]
[1753958362411,4.8498,3865.9,3865.5,3.17698028]
[1753958362613,0.24223821,3865.8,3865.5,3.17698028]
[1753958362781,0.24223821,3865.7,3865.5,3.17698028]
[1753958362963,4.8498,3865.9,3865.5,3.17698028]
[1753958363163,0.24226936,3865.8,3865.5,3.17698028]
[1753958363368,0.24226936,3865.7,3865.5,3.17698028]
[1753958363569,4.8498,3865.9,3865.5,3.17698028]
[1753958363769,0.2423076,3865.8,3865.5,3.17698028]
[1753958364010,0.2423076,3865.7,3865.5,3.17698028]
[1753958364196,4.8498,3865.9,3865.5,3.17698028]
[1753958364397,0.24230933,3865.8,3865.5,3.17698028]
[1753958364595,0.24230933,3865.7,3865.5,3.17698028]
[1753958364810,0.9148,3865.9,3865.5,3.17698028]
[1753958364972,0.24233411,3865.8,3865.5,0.59]
[1753958365271,0.24233411,3865.7,3865.5,0.59]
[1753958365467,10.5396,3866.0,3865.5,0.59]
[1753958365705,0.9148,3865.8,3865.5,0.59]
[1753958365903,0.24235411,3865.7,3865.5,0.1296]
[1753958366095,0.9148,3865.8,3865.5,0.1296]
[1753958366296,0.24235408,3865.7,3865.5,0.1296]
[1753958366498,0.9148,3865.8,3865.5,0.1296]
[1753958366689,0.24237607,3865.7,3865.5,0.1296]
[1753958367010,0.9148,3865.8,3865.5,0.1296]
[1753958367170,0.24234916,3865.7,3865.5,0.1296]
[1753958367366,0.24238032,3865.6,3865.5,0.1296]
[1753958368603,0.24239167,3865.6,3865.5,0.1296]
[1753958368809,0.24239167,3865.6,3865.5,2.71658745]
[1753958370812,0.9148,3865.8,3865.5,0.1296]
[1753958371401,0.9148,3865.7,3865.5,0.1296]
[1753958371718,0.24239013,3865.6,3865.5,0.1296]
[1753958371889,7.63219013,3865.6,3865.4,3.934]
[1753958372219,1.15719013,3865.5,3865.3,3.934]
[1753958372399,0.24236495,3865.4,3865.3,3.934]
[1753958372713,1.15716495,3865.4,3865.3,3.934]
[1753958373290,0.24236495,3865.4,3865.3,6.52112131]
[1753958373480,0.24236495,3865.4,3865.3,8.19300335]
[1753958373823,6.475,3865.8,3865.4,2.58705437]
[1753958373998,0.24235242,3865.7,3865.5,0.6226]
[1753958374183,0.24235242,3865.6,3865.5,2.71658745]
[1753958374521,6.475,3865.8,3865.6,2.58692052]
[1753958374681,0.24236826,3865.7,3865.6,2.58692052]
[1753958374881,0.24236826,3865.7,3865.6,3.07992052]
[1753958376216,0.24236826,3865.7,3865.6,2.58692052]
[1753958376616,0.24236826,3865.7,3865.5,0.1296]
[1753958376826,6.475,3865.8,3865.5,2.71654081]
[1753958377123,0.24235102,3865.7,3865.5,2.71654081]
[1753958377323,7.4006,3865.8,3865.5,2.71654081]
[1753958377527,0.24235,3865.7,3865.6,2.58692052]
[1753958378937,0.24235,3865.7,3865.6,3.07992052]
[1753958379629,0.24235,3865.7,3865.6,2.58692052]
[1753958380042,0.24235,3865.7,3865.5,2.71656171]
[1753958380333,6.475,3865.8,3865.6,2.58690336]
[1753958380501,0.70954048,3865.7,3865.6,2.58690336]
[1753958381846,1.16794048,3865.7,3865.5,0.1296]
[1753958382142,1.16794048,3865.6,3865.5,0.1296]
[1753958382820,1.16794048,3865.6,3865.5,2.71658745]
[1753958383147,0.9256,3865.6,3865.5,2.71658745]
[1753958384439,1.16793054,3865.6,3865.3,3.934]
[1753958384642,0.9256,3865.5,3865.4,0.1296]
[1753958384840,1.16791425,3865.5,3865.4,0.1296]
[1753958385705,1.16791425,3865.5,3865.4,2.71665437]
[1753958385907,0.9256,3865.5,3865.4,2.71665437]
[1753958386106,0.9256,3865.5,3865.4,0.1296]
[1753958386305,0.9256,3865.5,3865.2,2.58718162]
[1753958386645,0.9256,3865.4,3865.3,4.0626]
[1753958386845,0.9256,3865.4,3865.3,6.64972131]
[1753958395358,0.9256,3865.4,3865.3,4.0626]
[1753958395659,0.9256,3865.4,3865.3,6.64972131]
[1753958398963,0.4672,3865.4,3865.3,6.64972131]
[1753958399266,0.9256,3865.6,3865.5,2.58698745]
[1753958400766,0.9256,3865.6,3865.5,6.51898745]
[1753958401142,0.9256,3865.6,3865.5,3.932]
[1753958403564,1.16790846,3865.6,3865.5,3.932]
[1753958404233,1.16790846,3865.6,3865.4,3.932]
[1753958404444,6.6046,3865.8,3865.4,3.932]
[1753958404647,0.9435,3865.5,3865.4,6.51905437]
[1753958404967,6.6046,3865.8,3865.4,3.932]
[1753958405140,0.24231155,3865.7,3865.4,4.0616]
[1753958405471,6.475,3865.8,3865.6,2.58686979]
[1753958405657,0.24232437,3865.7,3865.6,2.58686979]
[1753958405861,1.1858244,3865.7,3865.4,4.0616]
[1753958406042,0.4609,3865.6,3865.4,4.0616]
[1753958406246,0.9435,3865.6,3865.4,6.64861515]
[1753958406739,6.475,3865.8,3865.4,6.64861515]
[1753958407074,0.9435,3865.6,3865.4,6.51901515]
[1753958408171,0.9435,3865.6,3865.4,3.932]
[1753958408673,0.4826,3865.5,3865.4,3.932]
[1753958408972,0.4826,3865.5,3865.4,6.51905437]
[1753958410474,0.4609,3865.6,3865.5,2.58698745]
[1753958410656,0.70326326,3865.6,3865.5,2.58698745]
[1753958411178,0.24236326,3865.6,3865.5,2.58698745]
[1753958411342,0.4826,3865.7,3865.6,2.58692052]
[1753958411544,0.72498886,3865.7,3865.6,2.58692052]
[1753958411972,0.72498886,3865.7,3865.4,3.932]
[1753958412139,0.4826,3865.7,3865.4,6.5190104]
[1753958412344,0.4826,3865.7,3865.5,2.58697177]
[1753958412545,0.9435,3865.7,3865.5,2.58697177]
[1753958415271,6.475,3865.8,3865.6,2.58692052]
[1753958415469,0.24239256,3865.7,3865.6,2.58692052]
[1753958416805,6.475,3865.8,3865.7,2.5868536]
[1753958416988,6.71739693,3865.8,3865.7,2.5868536]
[1753958417285,6.71739693,3865.8,3865.7,3.0769536]
[1753958417651,6.71739693,3865.8,3865.7,0.4901]
[1753958417991,6.71739693,3865.8,3865.6,2.58689989]
[1753958418188,6.475,3865.8,3865.6,2.58689989]
[1753958418494,6.475,3865.8,3865.7,2.5868536]
[1753958418793,6.71735786,3865.8,3865.6,7.00797623]
[1753958418952,6.475,3865.8,3865.6,7.00797623]
[1753958419358,6.475,3865.8,3865.6,6.51787623]
[1753958420761,6.475,3865.8,3865.7,2.5868536]
[1753958420963,6.71733386,3865.8,3865.7,2.5868536]
[1753958421494,6.71733386,3865.8,3865.6,6.51789548]
[1753958421698,6.475,3865.8,3865.6,6.51789548]
[1753958424275,6.475,3865.8,3865.6,3.931]
[1753958425599,6.475,3865.8,3865.6,6.51791688]
[1753958426499,6.9576,3865.8,3865.6,6.51791688]
[1753958427784,6.9576,3865.8,3865.6,3.931]
[1753958427995,7.4185,3865.8,3865.6,3.931]
[1753958428304,6.9359,3865.8,3865.6,3.931]
[1753958428494,0.4826,3865.7,3865.6,3.931]
[1753958428697,0.9435,3865.7,3865.6,6.51792052]
[1753958429309,0.9435,3865.7,3865.6,3.931]
[1753958429908,0.9435,3865.7,3865.6,6.51792052]
[1753958430204,0.9435,3865.7,3865.6,3.931]
[1753958432823,0.9455,3865.7,3865.6,3.931]
[1753958434277,0.002,3865.7,3865.6,6.51792052]
[1753958436320,0.002,3865.7,3865.6,3.931]
[1753958436507,0.8858,3865.7,3865.6,3.931]
[1753958438608,1.1280467,3865.7,3865.6,3.931]
[1753958444623,0.002,3865.7,3865.6,3.931]
[1753958445321,0.24424565,3865.7,3865.6,3.931]
[1753958445528,0.24424565,3865.7,3865.6,6.51792052]
[1753958445935,0.002,3865.7,3865.6,6.51792052]
[1753958446908,0.002,3865.7,3865.6,6.97322052]
[1753958447108,0.002,3865.7,3865.6,6.51792052]
[1753958447839,0.002,3865.7,3865.6,3.931]
[1753958448202,0.002,3865.7,3865.6,6.51792052]
[1753958448633,0.24425587,3865.7,3865.6,6.51792052]
[1753958449130,0.24425587,3865.7,3865.6,3.931]
[1753958450739,0.24425587,3865.7,3865.6,6.51792052]
[1753958451099,0.24425587,3865.7,3865.6,10.37788294]
[1753958451532,0.24425989,3865.7,3865.6,10.37788294]
[1753958451704,0.24425989,3865.7,3865.6,6.51792052]
[1753958452128,0.24425989,3865.7,3865.6,3.931]
[1753958452331,0.70045989,3865.7,3865.6,3.931]
[1753958452525,1.12805989,3865.7,3865.6,3.931]
[1753958454736,0.24425989,3865.7,3865.6,6.51792052]
[1753958455206,0.24425989,3865.7,3865.6,3.931]
[1753958456740,0.24425989,3865.7,3865.6,6.51792052]
[1753958457436,0.24426036,3865.7,3865.6,6.51792052]
[1753958458040,0.24426036,3865.7,3865.6,3.931]
[1753958458649,0.24426036,3865.7,3865.6,6.51792052]
[1753958461342,0.24426036,3865.7,3865.6,3.931]
[1753958461637,0.24426036,3865.7,3865.6,6.51792052]
[1753958461937,0.70045745,3865.7,3865.6,0.1296]
[1753958462139,1.12805745,3865.7,3865.5,4.0566]
[1753958462352,0.8838,3865.6,3865.5,4.0566]
[1753958462524,1.12605864,3865.6,3865.5,3.927]
[1753958463408,0.8838,3865.6,3865.5,3.927]
[1753958464142,0.8838,3865.6,3865.4,3.927]
[1753958464340,3.929,3865.7,3865.4,3.927]
[1753958464544,0.9393,3865.6,3865.4,6.51404648]
[1753958465047,0.4855,3865.5,3865.4,6.51404648]
[1753958468648,0.4855,3865.5,3865.4,3.927]
[1753958468819,0.4855,3865.5,3865.4,6.51405437]
[1753958469854,0.9393,3865.5,3865.3,0.1296]
[1753958470164,3.929,3865.7,3865.3,4.0566]
[1753958470346,0.24222708,3865.6,3865.3,4.0566]